fUST/lending_fUST_20260526
["ID","MTS","AMOUNT","RATE_DAILY","PERIOD"]
[423003589,1779741040000,-511.21355926,8.473e-05,2]
[423003597,1779741040000,-500.0,8.493e-05,2]
[423003601,1779741040000,-500.0,8.493e-05,2]
[423003603,1779741040000,-778.69,8.493e-05,2]
[423003593,1779741040000,-500.0,8.493e-05,2]
[423003608,1779741040000,-295.61988201,8.493e-05,2]
[423003607,1779741040000,-500.0,8.493e-05,2]
[423003605,1779741040000,-573.19801109,8.493e-05,2]
[423003610,1779741040000,-1068.32,8.493e-05,2]
[423003621,1779741040000,-613.7,8.493e-05,2]
[423003616,1779741040000,-500.0,8.493e-05,2]
[423003614,1779741040000,-500.0,8.493e-05,2]
[423003618,1779741040000,-541.46,8.493e-05,2]
[423003619,1779741040000,-500.0,8.493e-05,2]
[423003625,1779741040000,-500.0,8.493e-05,2]
[423003624,1779741040000,-500.0,8.493e-05,2]
[423003629,1779741040000,-1459.56,8.493e-05,2]
[423003628,1779741040000,-773.44,8.493e-05,2]
[423003549,1779741040000,-197.9673449,8.219e-05,2]
[423003612,1779741040000,-500.0,8.493e-05,2]
[423003584,1779741040000,-500.0,8.219e-05,2]
[423003599,1779741040000,-500.0,8.493e-05,2]
[423003581,1779741040000,-648.71,8.219e-05,2]
[423003551,1779741040000,-500.0,8.219e-05,2]
[423003582,1779741040000,-500.0,8.219e-05,2]
[423003552,1779741040000,-542.85,8.219e-05,2]
[423003553,1779741040000,-5618.22,8.219e-05,2]
[423003554,1779741040000,-1797.03,8.219e-05,2]
[423003555,1779741040000,-524.38,8.219e-05,2]
[423003556,1779741040000,-500.0,8.219e-05,2]
[423003559,1779741040000,-1441.55,8.219e-05,2]
[423003564,1779741040000,-500.0,8.219e-05,2]
[423003557,1779741040000,-3982.49,8.219e-05,2]
[423003563,1779741040000,-500.0,8.219e-05,2]
[423003565,1779741040000,-1119.32,8.219e-05,2]
[423003569,1779741040000,-1651.57,8.219e-05,2]
[423003568,1779741040000,-500.0,8.219e-05,2]
[423003561,1779741040000,-1845.07,8.219e-05,2]
[423003567,1779741040000,-678.11,8.219e-05,2]
[423003580,1779741040000,-1511.89,8.219e-05,2]
[423003558,1779741040000,-500.0,8.219e-05,2]
[423003575,1779741040000,-1512.1,8.219e-05,2]
[423003574,1779741040000,-2599.58,8.219e-05,2]
[423003576,1779741040000,-500.0,8.219e-05,2]
[423003578,1779741040000,-500.0,8.219e-05,2]
[423003577,1779741040000,-6625.04,8.219e-05,2]
[423003579,1779741040000,-236.82344643,8.219e-05,2]
[423003572,1779741040000,-500.0,8.219e-05,2]
[423003571,1779741040000,-500.0,8.219e-05,2]
[423003570,1779741040000,-2515.17,8.219e-05,2]
[423003566,1779741040000,-1216.55,8.219e-05,2]
[423003573,1779741040000,-30307.92,8.219e-05,2]
[423003679,1779741041000,-4030.62,8.493e-05,2]
[423003678,1779741041000,-954.23,8.493e-05,2]
[423003677,1779741041000,-1600.49,8.493e-05,2]
[423003670,1779741041000,-500.0,8.493e-05,2]
[423003681,1779741041000,-2548.57,8.493e-05,2]
[423003675,1779741041000,-500.0,8.493e-05,2]
[423003674,1779741041000,-500.0,8.493e-05,2]
[423003673,1779741041000,-773.67,8.493e-05,2]
[423003676,1779741041000,-500.0,8.493e-05,2]
[423003671,1779741041000,-500.0,8.493e-05,2]
[423003669,1779741041000,-809.26,8.493e-05,2]
[423003680,1779741041000,-532.6,8.493e-05,2]
[423003672,1779741041000,-500.0,8.493e-05,2]
[423003683,1779741041000,-500.0,8.493e-05,2]
[423003699,1779741041000,-500.0,8.493e-05,2]
[423003684,1779741041000,-4007.39,8.493e-05,2]
[423003687,1779741041000,-500.0,8.493e-05,2]
[423003685,1779741041000,-579.88,8.493e-05,2]
[423003686,1779741041000,-500.0,8.493e-05,2]
[423003690,1779741041000,-1027.48,8.493e-05,2]
[423003693,1779741041000,-500.0,8.493e-05,2]
[423003691,1779741041000,-1638.68,8.493e-05,2]
[423003635,1779741041000,-306.02,8.493e-05,2]
[423003689,1779741041000,-2238.12,8.493e-05,2]
[423003692,1779741041000,-500.0,8.493e-05,2]
[423003695,1779741041000,-500.0,8.493e-05,2]
[423003694,1779741041000,-637.75,8.493e-05,2]
[423003664,1779741041000,-500.0,8.493e-05,2]
[423003682,1779741041000,-500.0,8.493e-05,2]
[423003662,1779741041000,-517.03,8.493e-05,2]
[423003639,1779741041000,-500.0,8.493e-05,2]
[423003663,1779741041000,-1011.82,8.493e-05,2]
[423003634,1779741041000,-660.54,8.493e-05,2]
[423003636,1779741041000,-500.0,8.493e-05,2]
[423003637,1779741041000,-500.0,8.493e-05,2]
[423003632,1779741041000,-500.0,8.493e-05,2]
[423003642,1779741041000,-1651.32,8.493e-05,2]
[423003640,1779741041000,-500.0,8.493e-05,2]
[423003641,1779741041000,-500.0,8.493e-05,2]
[423003644,1779741041000,-500.0,8.493e-05,2]
[423003643,1779741041000,-500.0,8.493e-05,2]
[423003654,1779741041000,-732.77,8.493e-05,2]
[423003645,1779741041000,-500.0,8.493e-05,2]
[423003655,1779741041000,-1247.83,8.493e-05,2]
[423003647,1779741041000,-500.0,8.493e-05,2]
[423003646,1779741041000,-500.0,8.493e-05,2]
[423003650,1779741041000,-500.0,8.493e-05,2]
[423003652,1779741041000,-500.0,8.493e-05,2]
[423003653,1779741041000,-500.0,8.493e-05,2]
[423003648,1779741041000,-500.0,8.493e-05,2]
[423003651,1779741041000,-1158.05,8.493e-05,2]
[423003649,1779741041000,-800.66,8.493e-05,2]
[423003667,1779741041000,-483.07049408,8.493e-05,2]
[423003656,1779741041000,-500.0,8.493e-05,2]
[423003657,1779741041000,-500.0,8.493e-05,2]
[423003658,1779741041000,-500.0,8.493e-05,2]
[423003659,1779741041000,-500.0,8.493e-05,2]
[423003660,1779741041000,-500.0,8.493e-05,2]
[423003661,1779741041000,-151.32914286,8.493e-05,2]
[423003665,1779741041000,-500.0,8.493e-05,2]
[423003668,1779741041000,-500.0,8.493e-05,2]
[423003666,1779741041000,-500.0,8.493e-05,2]
[423003697,1779741041000,-344.5,8.493e-05,2]
[423003688,1779741041000,-981.13,8.493e-05,2]
[423003702,1779741041000,-1684.74,8.493e-05,2]
[423003736,1779741041000,-1511.89,8.493e-05,2]
[423003739,1779741041000,-648.0,8.649e-05,2]
[423003738,1779741041000,-500.0,8.493e-05,2]
[423003734,1779741041000,-6625.04,8.493e-05,2]
[423003737,1779741041000,-648.71,8.493e-05,2]
[423003741,1779741041000,-1413.0,8.649e-05,2]
[423003744,1779741041000,-443.0,8.649e-05,2]
[423003742,1779741041000,-742.0,8.649e-05,2]
[423003740,1779741041000,-2204.0,8.649e-05,2]
[423003743,1779741041000,-185.0,8.649e-05,2]
[423003745,1779741041000,-508.58651201,8.678e-05,2]
[423003746,1779741041000,-2192.6329,8.767e-05,2]
[423003756,1779741041000,-778.69,8.767e-05,2]
[423003758,1779741041000,-1068.32,8.767e-05,2]
[423003747,1779741041000,-161.3759,8.767e-05,2]
[423003757,1779741041000,-500.0,8.767e-05,2]
[423003759,1779741041000,-500.0,8.767e-05,2]
[423003753,1779741041000,-500.0,8.767e-05,2]
[423003748,1779741041000,-624.91,8.767e-05,2]
[423003752,1779741041000,-500.0,8.767e-05,2]
[423003749,1779741041000,-500.0,8.767e-05,2]
[423003754,1779741041000,-500.0,8.767e-05,2]
[423003750,1779741041000,-500.0,8.767e-05,2]
[423003751,1779741041000,-500.0,8.767e-05,2]
[423003755,1779741041000,-500.0,8.767e-05,2]
[423003760,1779741041000,-500.0,8.767e-05,2]
[423003761,1779741041000,-500.0,8.767e-05,2]
[423003762,1779741041000,-541.46,8.767e-05,2]
[423003696,1779741041000,-500.0,8.493e-05,2]
[423003735,1779741041000,-500.0,8.493e-05,2]
[423003733,1779741041000,-500.0,8.493e-05,2]
[423003706,1779741041000,-500.0,8.493e-05,2]
[423003725,1779741041000,-500.0,8.493e-05,2]
[423003703,1779741041000,-1014.99,8.493e-05,2]
[423003701,1779741041000,-562.04,8.493e-05,2]
[423003705,1779741041000,-1585.73,8.493e-05,2]
[423003700,1779741041000,-5260.2,8.493e-05,2]
[423003704,1779741041000,-500.0,8.493e-05,2]
[423003698,1779741041000,-1613.61,8.493e-05,2]
[423003708,1779741041000,-3816.88,8.493e-05,2]
[423003709,1779741041000,-1354.69,8.493e-05,2]
[423003710,1779741041000,-1862.43,8.493e-05,2]
[423003707,1779741041000,-2140.42,8.493e-05,2]
[423003711,1779741041000,-500.0,8.493e-05,2]
[423003716,1779741041000,-3982.49,8.493e-05,2]
[423003714,1779741041000,-524.38,8.493e-05,2]
[423003713,1779741041000,-1797.03,8.493e-05,2]
[423003715,1779741041000,-500.0,8.493e-05,2]
[423003724,1779741041000,-678.11,8.493e-05,2]
[423003717,1779741041000,-500.0,8.493e-05,2]
[423003722,1779741041000,-1119.32,8.493e-05,2]
[423003721,1779741041000,-500.0,8.493e-05,2]
[423003723,1779741041000,-1216.55,8.493e-05,2]
[423003719,1779741041000,-1845.07,8.493e-05,2]
[423003712,1779741041000,-5618.22,8.493e-05,2]
[423003732,1779741041000,-1512.1,8.493e-05,2]
[423003720,1779741041000,-500.0,8.493e-05,2]
[423003731,1779741041000,-2599.58,8.493e-05,2]
[423003730,1779741041000,-30307.92,8.493e-05,2]
[423003726,1779741041000,-1651.57,8.493e-05,2]
[423003727,1779741041000,-2515.17,8.493e-05,2]
[423003728,1779741041000,-500.0,8.493e-05,2]
[423003718,1779741041000,-1441.55,8.493e-05,2]
[423003729,1779741041000,-500.0,8.493e-05,2]
[423003805,1779741042000,-773.67,8.767e-05,2]
[423003806,1779741042000,-500.0,8.767e-05,2]
[423003802,1779741042000,-500.0,8.767e-05,2]
[423003801,1779741042000,-809.26,8.767e-05,2]
[423003799,1779741042000,-500.0,8.767e-05,2]
[423003795,1779741042000,-517.03,8.767e-05,2]
[423003798,1779741042000,-500.0,8.767e-05,2]
[423003796,1779741042000,-1011.82,8.767e-05,2]
[423003797,1779741042000,-500.0,8.767e-05,2]
[423003807,1779741042000,-500.0,8.767e-05,2]
[423003803,1779741042000,-500.0,8.767e-05,2]
[423003800,1779741042000,-500.0,8.767e-05,2]
[423003804,1779741042000,-500.0,8.767e-05,2]
[423003820,1779741042000,-981.13,8.767e-05,2]
[423003810,1779741042000,-954.23,8.767e-05,2]
[423003811,1779741042000,-4030.62,8.767e-05,2]
[423003809,1779741042000,-1600.49,8.767e-05,2]
[423003818,1779741042000,-500.0,8.767e-05,2]
[423003817,1779741042000,-579.88,8.767e-05,2]
[423003813,1779741042000,-2548.57,8.767e-05,2]
[423003814,1779741042000,-500.0,8.767e-05,2]
[423003812,1779741042000,-532.6,8.767e-05,2]
[423003819,1779741042000,-243.02739965,8.767e-05,2]
[423003816,1779741042000,-4007.39,8.767e-05,2]
[423003832,1779741042000,-562.04,8.767e-05,2]
[423003833,1779741042000,-1684.74,8.767e-05,2]
[423003792,1779741042000,-500.0,8.767e-05,2]
[423003808,1779741042000,-500.0,8.767e-05,2]
[423003794,1779741042000,-500.0,8.767e-05,2]
[423003775,1779741042000,-500.0,8.767e-05,2]
[423003791,1779741042000,-500.0,8.767e-05,2]
[423003763,1779741042000,-500.0,8.767e-05,2]
[423003764,1779741042000,-613.7,8.767e-05,2]
[423003771,1779741042000,-500.0,8.767e-05,2]
[423003765,1779741042000,-500.0,8.767e-05,2]
[423003769,1779741042000,-500.0,8.767e-05,2]
[423003767,1779741042000,-773.44,8.767e-05,2]
[423003772,1779741042000,-500.0,8.767e-05,2]
[423003773,1779741042000,-500.0,8.767e-05,2]
[423003770,1779741042000,-660.54,8.767e-05,2]
[423003766,1779741042000,-500.0,8.767e-05,2]
[423003768,1779741042000,-1459.56,8.767e-05,2]
[423003774,1779741042000,-500.0,8.767e-05,2]
[423003776,1779741042000,-1651.32,8.767e-05,2]
[423003793,1779741042000,-500.0,8.767e-05,2]
[423003777,1779741042000,-500.0,8.767e-05,2]
[423003785,1779741042000,-1158.05,8.767e-05,2]
[423003778,1779741042000,-500.0,8.767e-05,2]
[423003780,1779741042000,-500.0,8.767e-05,2]
[423003782,1779741042000,-500.0,8.767e-05,2]
[423003783,1779741042000,-800.66,8.767e-05,2]
[423003779,1779741042000,-500.0,8.767e-05,2]
[423003781,1779741042000,-500.0,8.767e-05,2]
[423003784,1779741042000,-500.0,8.767e-05,2]
[423003787,1779741042000,-500.0,8.767e-05,2]
[423003788,1779741042000,-732.77,8.767e-05,2]
[423003790,1779741042000,-500.0,8.767e-05,2]
[423003786,1779741042000,-500.0,8.767e-05,2]
[423003789,1779741042000,-1247.83,8.767e-05,2]
[423003822,1779741042000,-1027.48,8.767e-05,2]
[423003823,1779741042000,-1638.68,8.767e-05,2]
[423003815,1779741042000,-495.32021147,8.767e-05,2]
[423003825,1779741042000,-500.0,8.767e-05,2]
[423003851,1779741042000,-500.0,8.767e-05,2]
[423003852,1779741042000,-500.0,8.767e-05,2]
[423003861,1779741042000,-30307.92,8.767e-05,2]
[423003863,1779741042000,-1512.1,8.767e-05,2]
[423003864,1779741042000,-500.0,8.767e-05,2]
[423003865,1779741042000,-6625.04,8.767e-05,2]
[423003862,1779741042000,-2599.58,8.767e-05,2]
[423003867,1779741042000,-1511.89,8.767e-05,2]
[423003868,1779741042000,-648.71,8.767e-05,2]
[423003873,1779741042000,-1327.43467518,9.033e-05,2]
[423003872,1779741042000,-1327.43467518,9.033e-05,2]
[423003871,1779741042000,-220.26638825,8.907e-05,2]
[423003870,1779741042000,-811.8,8.792e-05,2]
[423003850,1779741042000,-1845.07,8.767e-05,2]
[423003866,1779741042000,-500.0,8.767e-05,2]
[423003874,1779741042000,-2192.6329,9.041e-05,2]
[423003875,1779741042000,-624.91,9.041e-05,2]
[423003876,1779741042000,-500.0,9.041e-05,2]
[423003878,1779741042000,-500.0,9.041e-05,2]
[423003877,1779741042000,-500.0,9.041e-05,2]
[423003880,1779741042000,-500.0,9.041e-05,2]
[423003879,1779741042000,-500.0,9.041e-05,2]
[423003881,1779741042000,-638.64,9.041e-05,2]
[423003824,1779741042000,-500.0,8.767e-05,2]
[423003882,1779741042000,-180.89,9.041e-05,2]
[423003885,1779741042000,-1068.32,9.041e-05,2]
[423003883,1779741042000,-778.69,9.041e-05,2]
[423003884,1779741042000,-576.4082605,9.041e-05,2]
[423003869,1779741042000,-500.0,8.767e-05,2]
[423003849,1779741042000,-1441.55,8.767e-05,2]
[423003886,1779741042000,-500.0,9.041e-05,2]
[423003860,1779741042000,-500.0,8.767e-05,2]
[423003858,1779741042000,-2515.17,8.767e-05,2]
[423003821,1779741042000,-2238.12,8.767e-05,2]
[423003830,1779741042000,-500.0,8.767e-05,2]
[423003827,1779741042000,-500.0,8.767e-05,2]
[423003829,1779741042000,-1613.61,8.767e-05,2]
[423003826,1779741042000,-637.75,8.767e-05,2]
[423003831,1779741042000,-5260.2,8.767e-05,2]
[423003835,1779741042000,-500.0,8.767e-05,2]
[423003847,1779741042000,-3982.49,8.767e-05,2]
[423003846,1779741042000,-500.0,8.767e-05,2]
[423003845,1779741042000,-524.38,8.767e-05,2]
[423003842,1779741042000,-500.0,8.767e-05,2]
[423003834,1779741042000,-1014.99,8.767e-05,2]
[423003841,1779741042000,-1862.43,8.767e-05,2]
[423003828,1779741042000,-500.0,8.767e-05,2]
[423003838,1779741042000,-2140.42,8.767e-05,2]
[423003843,1779741042000,-5618.22,8.767e-05,2]
[423003854,1779741042000,-1216.55,8.767e-05,2]
[423003855,1779741042000,-678.11,8.767e-05,2]
[423003853,1779741042000,-1119.32,8.767e-05,2]
[423003857,1779741042000,-1651.57,8.767e-05,2]
[423003848,1779741042000,-500.0,8.767e-05,2]
[423003856,1779741042000,-500.0,8.767e-05,2]
[423003840,1779741042000,-1354.69,8.767e-05,2]
[423003837,1779741042000,-500.0,8.767e-05,2]
[423003844,1779741042000,-1797.03,8.767e-05,2]
[423003836,1779741042000,-1585.73,8.767e-05,2]
[423003859,1779741042000,-500.0,8.767e-05,2]
[423003839,1779741042000,-3816.88,8.767e-05,2]
[423003918,1779741043000,-732.77,9.041e-05,2]
[423003929,1779741043000,-500.0,9.041e-05,2]
[423003919,1779741043000,-1247.83,9.041e-05,2]
[423003921,1779741043000,-500.0,9.041e-05,2]
[423003927,1779741043000,-500.0,9.041e-05,2]
[423003928,1779741043000,-500.0,9.041e-05,2]
[423003923,1779741043000,-500.0,9.041e-05,2]
[423003930,1779741043000,-500.0,9.041e-05,2]
[423003924,1779741043000,-500.0,9.041e-05,2]
[423003926,1779741043000,-1011.82,9.041e-05,2]
[423003920,1779741043000,-500.0,9.041e-05,2]
[423003940,1779741043000,-954.23,9.041e-05,2]
[423003925,1779741043000,-517.03,9.041e-05,2]
[423003931,1779741043000,-809.26,9.041e-05,2]
[423003937,1779741043000,-500.0,9.041e-05,2]
[423003936,1779741043000,-500.0,9.041e-05,2]
[423003938,1779741043000,-500.0,9.041e-05,2]
[423003943,1779741043000,-2548.57,9.041e-05,2]
[423003942,1779741043000,-532.6,9.041e-05,2]
[423003934,1779741043000,-500.0,9.041e-05,2]
[423003935,1779741043000,-773.67,9.041e-05,2]
[423003917,1779741043000,-500.0,9.041e-05,2]
[423003932,1779741043000,-500.0,9.041e-05,2]
[423003922,1779741043000,-500.0,9.041e-05,2]
[423003910,1779741043000,-500.0,9.041e-05,2]
[423003893,1779741043000,-500.0,9.041e-05,2]
[423003905,1779741043000,-500.0,9.041e-05,2]
[423003941,1779741043000,-4030.62,9.041e-05,2]
[423003887,1779741043000,-500.0,9.041e-05,2]
[423003891,1779741043000,-613.7,9.041e-05,2]
[423003890,1779741043000,-500.0,9.041e-05,2]
[423003888,1779741043000,-500.0,9.041e-05,2]
[423003889,1779741043000,-541.46,9.041e-05,2]
[423003898,1779741043000,-500.0,9.041e-05,2]
[423003899,1779741043000,-500.0,9.041e-05,2]
[423003892,1779741043000,-500.0,9.041e-05,2]
[423003897,1779741043000,-660.54,9.041e-05,2]
[423003895,1779741043000,-1459.56,9.041e-05,2]
[423003904,1779741043000,-500.0,9.041e-05,2]
[423003896,1779741043000,-500.0,9.041e-05,2]
[423003912,1779741043000,-500.0,9.041e-05,2]
[423003901,1779741043000,-500.0,9.041e-05,2]
[423003913,1779741043000,-800.66,9.041e-05,2]
[423003914,1779741043000,-500.0,9.041e-05,2]
[423003915,1779741043000,-1158.05,9.041e-05,2]
[423003900,1779741043000,-500.0,9.041e-05,2]
[423003916,1779741043000,-500.0,9.041e-05,2]
[423003902,1779741043000,-500.0,9.041e-05,2]
[423003907,1779741043000,-500.0,9.041e-05,2]
[423003903,1779741043000,-1651.32,9.041e-05,2]
[423003909,1779741043000,-500.0,9.041e-05,2]
[423003894,1779741043000,-773.44,9.041e-05,2]
[423003939,1779741043000,-1600.49,9.041e-05,2]
[423003993,1779741043000,-500.0,9.041e-05,2]
[423003954,1779741043000,-165.2,9.041e-05,2]
[423003974,1779741043000,-500.0,9.041e-05,2]
[423003979,1779741043000,-3982.49,9.041e-05,2]
[423003975,1779741043000,-5618.22,9.041e-05,2]
[423003980,1779741043000,-500.0,9.041e-05,2]
[423003981,1779741043000,-1441.55,9.041e-05,2]
[423003984,1779741043000,-485.44008948,9.041e-05,2]
[423003982,1779741043000,-1845.07,9.041e-05,2]
[423003983,1779741043000,-158.1626558,9.041e-05,2]
[423003985,1779741043000,-1119.32,9.041e-05,2]
[423003987,1779741043000,-678.11,9.041e-05,2]
[423003986,1779741043000,-1216.55,9.041e-05,2]
[423003989,1779741043000,-1651.57,9.041e-05,2]
[423003991,1779741043000,-2515.17,9.041e-05,2]
[423003995,1779741043000,-2599.58,9.041e-05,2]
[423003992,1779741043000,-500.0,9.041e-05,2]
[423003994,1779741043000,-30307.92,9.041e-05,2]
[423003996,1779741043000,-522.58204836,9.041e-05,2]
[423003999,1779741043000,-5372.21907544,9.041e-05,2]
[423003998,1779741043000,-989.51795164,9.041e-05,2]
[423004000,1779741043000,-1252.82092456,9.041e-05,2]
[423004002,1779741043000,-500.0,9.041e-05,2]
[423004001,1779741043000,-500.0,9.041e-05,2]
[423003933,1779741043000,-500.0,9.041e-05,2]
[423003978,1779741043000,-500.0,9.041e-05,2]
[423003973,1779741043000,-1862.43,9.041e-05,2]
[423003988,1779741043000,-500.0,9.041e-05,2]
[423003976,1779741043000,-1797.03,9.041e-05,2]
[423003977,1779741043000,-524.38,9.041e-05,2]
[423003947,1779741043000,-579.88,9.041e-05,2]
[423003946,1779741043000,-4007.39,9.041e-05,2]
[423003950,1779741043000,-2238.12,9.041e-05,2]
[423003944,1779741043000,-500.0,9.041e-05,2]
[423003956,1779741043000,-637.75,9.041e-05,2]
[423003949,1779741043000,-981.13,9.041e-05,2]
[423003955,1779741043000,-500.0,9.041e-05,2]
[423003951,1779741043000,-1027.48,9.041e-05,2]
[423003957,1779741043000,-500.0,9.041e-05,2]
[423003948,1779741043000,-500.0,9.041e-05,2]
[423003966,1779741043000,-1585.73,9.041e-05,2]
[423003952,1779741043000,-1638.68,9.041e-05,2]
[423003959,1779741043000,-1613.61,9.041e-05,2]
[423003969,1779741043000,-3816.88,9.041e-05,2]
[423003971,1779741043000,-1354.69,9.041e-05,2]
[423003968,1779741043000,-2140.42,9.041e-05,2]
[423003967,1779741043000,-500.0,9.041e-05,2]
[423003963,1779741043000,-1684.74,9.041e-05,2]
[423003964,1779741043000,-1014.99,9.041e-05,2]
[423003965,1779741043000,-500.0,9.041e-05,2]
[423003962,1779741043000,-562.04,9.041e-05,2]
[423003960,1779741043000,-500.0,9.041e-05,2]
[423003958,1779741043000,-500.0,9.041e-05,2]
[423003961,1779741043000,-5260.2,9.041e-05,2]
[423004040,1779741044000,-389.02967465,9.315e-05,2]
[423004041,1779741044000,-500.0,9.315e-05,2]
[423004037,1779741044000,-1459.56,9.315e-05,2]
[423004042,1779741044000,-500.0,9.315e-05,2]
[423004039,1779741044000,-660.54,9.315e-05,2]
[423004035,1779741044000,-500.0,9.315e-05,2]
[423004045,1779741044000,-1651.32,9.315e-05,2]
[423004043,1779741044000,-500.0,9.315e-05,2]
[423004034,1779741044000,-500.0,9.315e-05,2]
[423004046,1779741044000,-500.0,9.315e-05,2]
[423004038,1779741044000,-500.0,9.315e-05,2]
[423004036,1779741044000,-773.44,9.315e-05,2]
[423004051,1779741044000,-500.0,9.315e-05,2]
[423004061,1779741044000,-500.0,9.315e-05,2]
[423004050,1779741044000,-345.1634885,9.315e-05,2]
[423004048,1779741044000,-500.0,9.315e-05,2]
[423004049,1779741044000,-500.0,9.315e-05,2]
[423004054,1779741044000,-1158.05,9.315e-05,2]
[423004064,1779741044000,-517.03,9.315e-05,2]
[423004053,1779741044000,-500.0,9.315e-05,2]
[423004055,1779741044000,-500.0,9.315e-05,2]
[423004057,1779741044000,-732.77,9.315e-05,2]
[423004058,1779741044000,-1247.83,9.315e-05,2]
[423004063,1779741044000,-500.0,9.315e-05,2]
[423004056,1779741044000,-500.0,9.315e-05,2]
[423004059,1779741044000,-500.0,9.315e-05,2]
[423004044,1779741044000,-381.58,9.315e-05,2]
[423004047,1779741044000,-500.0,9.315e-05,2]
[423004033,1779741044000,-613.7,9.315e-05,2]
[423004007,1779741044000,-9222.6830572,9.123e-05,2]
[423004027,1779741044000,-500.0,9.315e-05,2]
[423004060,1779741044000,-150.0764887,9.315e-05,2]
[423004003,1779741044000,-1511.89,9.041e-05,2]
[423004004,1779741044000,-648.71,9.041e-05,2]
[423004005,1779741044000,-500.0,9.041e-05,2]
[423004006,1779741044000,-607.15202782,9.059e-05,2]
[423004012,1779741044000,-791.0,9.154e-05,2]
[423004017,1779741044000,-194.21438653,9.175e-05,2]
[423004016,1779741044000,-153.34372475,9.175e-05,2]
[423004010,1779741044000,-537.6845,9.143e-05,2]
[423004015,1779741044000,-162.05665301,9.175e-05,7]
[423004014,1779741044000,-168.98840917,9.175e-05,7]
[423004008,1779741044000,-500.0,9.143e-05,2]
[423004013,1779741044000,-208.47683381,9.175e-05,2]
[423004011,1779741044000,-1000.0,9.154e-05,2]
[423004009,1779741044000,-235.40631024,9.143e-05,2]
[423004018,1779741044000,-2192.6329,9.315e-05,2]
[423004024,1779741044000,-500.0,9.315e-05,2]
[423004022,1779741044000,-500.0,9.315e-05,2]
[423004021,1779741044000,-500.0,9.315e-05,2]
[423004020,1779741044000,-500.0,9.315e-05,2]
[423004023,1779741044000,-350.51330597,9.315e-05,2]
[423004019,1779741044000,-624.91,9.315e-05,2]
[423004026,1779741044000,-1068.32,9.315e-05,2]
[423004030,1779741044000,-541.46,9.315e-05,2]
[423004031,1779741044000,-500.0,9.315e-05,2]
[423004028,1779741044000,-500.0,9.315e-05,2]
[423004025,1779741044000,-778.69,9.315e-05,2]
[423004029,1779741044000,-500.0,9.315e-05,2]
[423004062,1779741044000,-500.0,9.315e-05,2]
[423004052,1779741044000,-800.66,9.315e-05,2]
[423004067,1779741044000,-500.0,9.315e-05,2]
[423004106,1779741044000,-562.04,9.315e-05,2]
[423004107,1779741044000,-1684.74,9.315e-05,2]
[423004104,1779741044000,-500.0,9.315e-05,2]
[423004110,1779741044000,-1585.73,9.315e-05,2]
[423004105,1779741044000,-5260.2,9.315e-05,2]
[423004109,1779741044000,-500.0,9.315e-05,2]
[423004108,1779741044000,-1014.99,9.315e-05,2]
[423004113,1779741044000,-3816.88,9.315e-05,2]
[423004125,1779741044000,-1119.32,9.315e-05,2]
[423004123,1779741044000,-1845.07,9.315e-05,2]
[423004122,1779741044000,-1441.55,9.315e-05,2]
[423004115,1779741044000,-1862.43,9.315e-05,2]
[423004124,1779741044000,-343.36322593,9.315e-05,2]
[423004111,1779741044000,-500.0,9.315e-05,2]
[423004114,1779741044000,-1354.69,9.315e-05,2]
[423004121,1779741044000,-3982.49,9.315e-05,2]
[423004119,1779741044000,-524.38,9.315e-05,2]
[423004118,1779741044000,-1797.03,9.315e-05,2]
[423004120,1779741044000,-500.0,9.315e-05,2]
[423004126,1779741044000,-1216.55,9.315e-05,2]
[423004127,1779741044000,-678.11,9.315e-05,2]
[423004129,1779741044000,-1651.57,9.315e-05,2]
[423004130,1779741044000,-2515.17,9.315e-05,2]
[423004128,1779741044000,-500.0,9.315e-05,2]
[423004134,1779741044000,-2599.58,9.315e-05,2]
[423004132,1779741044000,-500.0,9.315e-05,2]